[Event "Titled Tuesday Blitz June 20 Late 2023"]
[White "Howell, David W L"]
[Black "Melikhov, Evgeny V."]
[WhiteFideId "410608"]
[BlackFideId "4122046"]
[WhiteElo "2567"]
[BlackElo "2158"]
[Result "1-0"]
[Round "7"]
[TimeControl "180+2"]
[Date "2023.06.20"]
[WhiteClock "0:00:32"]
[BlackClock "0:00:26"]
[Board "110"]

1. e4 {[%clk 0:03:00]}  e5 {[%clk 0:02:59]} 2. Bc4 {[%clk 0:02:52]}  Nf6 {[%clk 0:02:58]} 3. Nc3 {[%clk 0:02:50]}  Nc6 {[%clk 0:02:56]} 4. d3 {[%clk 0:02:49]}  Bc5 {[%clk 0:02:56]} 5. f4 {[%clk 0:02:45]}  d6 {[%clk 0:02:56]} 6. Nf3 {[%clk 0:02:44]}  Bg4 {[%clk 0:02:55]} 7. h3 {[%clk 0:02:40]}  Bxf3 {[%clk 0:02:55]} 8. Qxf3 {[%clk 0:02:41]}  Nd4 {[%clk 0:02:55]} 9. Qd1 {[%clk 0:02:35]}  c6 {[%clk 0:02:39]} 10. fxe5 {[%clk 0:02:32]}  dxe5 {[%clk 0:02:37]} 11. Bg5 {[%clk 0:02:24]}  b5 {[%clk 0:02:15]} 12. Bb3 {[%clk 0:02:22]}  Nxb3 {[%clk 0:02:14]} 13. axb3 {[%clk 0:02:22]}  Qd4 {[%clk 0:02:02]} 14. Qf3 {[%clk 0:02:00]}  Nd7 {[%clk 0:01:53]} 15. Ra2 {[%clk 0:01:56]}  f6 {[%clk 0:01:51]} 16. Bd2 {[%clk 0:01:38]}  O-O {[%clk 0:01:45]} 17. Ne2 {[%clk 0:01:32]}  Qd6 {[%clk 0:01:43]} 18. Be3 {[%clk 0:01:30]}  Rf7 {[%clk 0:01:35]} 19. O-O {[%clk 0:01:29]}  Bxe3+ {[%clk 0:01:32]} 20. Qxe3 {[%clk 0:01:29]}  Qc5 {[%clk 0:01:33]} 21. Qxc5 {[%clk 0:01:28]}  Nxc5 {[%clk 0:01:33]} 22. Rfa1 {[%clk 0:01:27]}  g6 {[%clk 0:01:24]} 23. g4 {[%clk 0:01:23]}  Ne6 {[%clk 0:01:09]} 24. Ra6 {[%clk 0:01:19]}  Rc7 {[%clk 0:01:08]} 25. Kf2 {[%clk 0:01:16]}  Kf7 {[%clk 0:01:07]} 26. Ke3 {[%clk 0:01:15]}  Ke7 {[%clk 0:01:07]} 27. b4 {[%clk 0:01:13]}  Kd7 {[%clk 0:01:00]} 28. h4 {[%clk 0:01:09]}  Kc8 {[%clk 0:00:56]} 29. Rf1 {[%clk 0:00:59]}  Kb7 {[%clk 0:00:54]} 30. Rxf6 {[%clk 0:00:56]}  Kxa6 {[%clk 0:00:53]} 31. Rxe6 {[%clk 0:00:56]}  Kb6 {[%clk 0:00:51]} 32. Rxe5 {[%clk 0:00:54]}  a5 {[%clk 0:00:51]} 33. bxa5+ {[%clk 0:00:53]}  Rxa5 {[%clk 0:00:52]} 34. b4 {[%clk 0:00:48]}  Ra1 {[%clk 0:00:51]} 35. h5 {[%clk 0:00:41]}  Rh1 {[%clk 0:00:48]} 36. hxg6 {[%clk 0:00:41]}  hxg6 {[%clk 0:00:48]} 37. Re6 {[%clk 0:00:37]}  Rh3+ {[%clk 0:00:41]} 38. Kd2 {[%clk 0:00:34]}  Rf7 {[%clk 0:00:37]} 39. Nd4 {[%clk 0:00:31]}  Rf2+ {[%clk 0:00:36]} 40. Kc3 {[%clk 0:00:31]}  g5 {[%clk 0:00:36]} 41. Rxc6+ {[%clk 0:00:31]}  Kb7 {[%clk 0:00:36]} 42. Rg6 {[%clk 0:00:32]}  Rg3 {[%clk 0:00:32]} 43. Rxg5 {[%clk 0:00:32]}  Rfg2 {[%clk 0:00:32]} 44. Rxb5+ {[%clk 0:00:32]}  Ka6 {[%clk 0:00:31]} 45. Rg5 {[%clk 0:00:33]}  Rxg4 {[%clk 0:00:31]} 46. Rxg4 {[%clk 0:00:33]}  Rxg4 {[%clk 0:00:31]} 47. Kc4 {[%clk 0:00:34]}  Kb6 {[%clk 0:00:30]} 48. Kd5 {[%clk 0:00:33]}  Rg5+ {[%clk 0:00:28]} 49. e5 {[%clk 0:00:33]}  Kc7 {[%clk 0:00:26]} 50. Ne6+ {[%clk 0:00:32]} 1-0


[Site "https://www.chess.com"]

[Event "Titled Tuesday Blitz June 20 Late 2023"]
[White "Vlassov, Nikolai"]
[Black "Sadilek, Peter"]
[WhiteFideId "4103360"]
[BlackFideId "1616439"]
[WhiteElo "2324"]
[BlackElo "2227"]
[Result "1-0"]
[Round "7"]
[TimeControl "180+2"]
[Date "2023.06.20"]
[WhiteClock "0:00:05"]
[BlackClock "0:00:00"]
[Board "111"]

1. e4 {[%clk 0:02:34]}  g6 {[%clk 0:02:59]} 2. Nc3 {[%clk 0:02:33]}  Bg7 {[%clk 0:02:59]} 3. h4 {[%clk 0:02:32]}  h5 {[%clk 0:02:59]} 4. Nf3 {[%clk 0:02:32]}  c5 {[%clk 0:02:59]} 5. Bc4 {[%clk 0:02:30]}  Nc6 {[%clk 0:02:58]} 6. d3 {[%clk 0:02:29]}  d6 {[%clk 0:02:55]} 7. Ng5 {[%clk 0:02:29]}  e6 {[%clk 0:02:50]} 8. Be3 {[%clk 0:02:07]}  a6 {[%clk 0:02:50]} 9. Qd2 {[%clk 0:02:05]}  b5 {[%clk 0:02:49]} 10. Bb3 {[%clk 0:02:05]}  Nf6 {[%clk 0:02:42]} 11. f3 {[%clk 0:01:57]}  Nd4 {[%clk 0:02:28]} 12. Ne2 {[%clk 0:01:44]}  Nxb3 {[%clk 0:02:21]} 13. axb3 {[%clk 0:01:45]}  Nd7 {[%clk 0:02:00]} 14. d4 {[%clk 0:01:41]}  O-O {[%clk 0:01:56]} 15. g4 {[%clk 0:01:39]}  cxd4 {[%clk 0:01:54]} 16. Bxd4 {[%clk 0:01:39]}  Bxd4 {[%clk 0:01:46]} 17. Nxd4 {[%clk 0:01:25]}  Nf6 {[%clk 0:01:29]} 18. gxh5 {[%clk 0:01:21]}  Nxh5 {[%clk 0:01:30]} 19. O-O-O {[%clk 0:01:14]}  Qf6 {[%clk 0:01:30]} 20. Nc6 {[%clk 0:00:53]}  Bb7 {[%clk 0:01:17]} 21. Qxd6 {[%clk 0:00:50]}  Bxc6 {[%clk 0:01:15]} 22. Qxc6 {[%clk 0:00:50]}  Rac8 {[%clk 0:01:05]} 23. Qb6 {[%clk 0:00:38]}  Nf4 {[%clk 0:00:50]} 24. Qe3 {[%clk 0:00:30]}  e5 {[%clk 0:00:28]} 25. Nh3 {[%clk 0:00:19]}  Nxh3 {[%clk 0:00:16]} 26. Rxh3 {[%clk 0:00:19]}  Qe6 {[%clk 0:00:14]} 27. Rg3 {[%clk 0:00:18]}  Rc6 {[%clk 0:00:13]} 28. h5 {[%clk 0:00:18]}  Rfc8 {[%clk 0:00:13]} 29. Rd2 {[%clk 0:00:18]}  Kg7 {[%clk 0:00:12]} 30. hxg6 {[%clk 0:00:18]}  fxg6 {[%clk 0:00:13]} 31. Qg5 {[%clk 0:00:16]}  Qxb3 {[%clk 0:00:10]} 32. Qxe5+ {[%clk 0:00:16]}  Kf8 {[%clk 0:00:09]} 33. Qh8+ {[%clk 0:00:13]}  Ke7 {[%clk 0:00:09]} 34. Qg7+ {[%clk 0:00:13]}  Ke8 {[%clk 0:00:07]} 35. Qd7+ {[%clk 0:00:12]}  Kf8 {[%clk 0:00:08]} 36. Rgg2 {[%clk 0:00:07]}  Qf7 {[%clk 0:00:04]} 37. Qxf7+ {[%clk 0:00:06]}  Kxf7 {[%clk 0:00:05]} 38. c3 {[%clk 0:00:07]}  b4 {[%clk 0:00:05]} 39. Rd3 {[%clk 0:00:06]}  bxc3 {[%clk 0:00:05]} 40. b3 {[%clk 0:00:06]}  Kf6 {[%clk 0:00:04]} 41. Ra2 {[%clk 0:00:05]}  Ke5 {[%clk 0:00:03]} 42. Kc2 {[%clk 0:00:05]}  Kf4 {[%clk 0:00:04]} 43. Ra5 {[%clk 0:00:05]}  Rc5 {[%clk 0:00:02]} 44. Rxa6 {[%clk 0:00:05]}  g5 {[%clk 0:00:03]} 45. Rf6+ {[%clk 0:00:05]}  Kg3 {[%clk 0:00:03]} 46. Rf5 {[%clk 0:00:05]}  Rxf5 {[%clk 0:00:03]} 47. exf5 {[%clk 0:00:05]}  Kf4 {[%clk 0:00:00]} 48. f6 {[%clk 0:00:05]} 1-0


[Site "https://www.chess.com"]

[Event "Titled Tuesday Blitz June 20 Late 2023"]
[White "cristianserban1"]
[Black "Prieto Aranguren, Alain"]
[BlackFideId "2268906"]
[WhiteElo "2483"]
[BlackElo "2209"]
[Result "0-1"]
[Round "7"]
[TimeControl "180+2"]
[Date "2023.06.20"]
[WhiteClock "0:00:00"]
[BlackClock "0:00:08"]
[Board "115"]

1. d4 {[%clk 0:03:00]}  g6 {[%clk 0:02:48]} 2. e4 {[%clk 0:02:58]}  Bg7 {[%clk 0:02:46]} 3. Nf3 {[%clk 0:02:58]}  d6 {[%clk 0:02:42]} 4. Bc4 {[%clk 0:02:59]}  Nf6 {[%clk 0:02:42]} 5. Qe2 {[%clk 0:02:59]}  O-O {[%clk 0:02:40]} 6. O-O {[%clk 0:02:59]}  Nc6 {[%clk 0:02:39]} 7. h3 {[%clk 0:02:56]}  e5 {[%clk 0:02:38]} 8. dxe5 {[%clk 0:02:56]}  dxe5 {[%clk 0:02:37]} 9. Rd1 {[%clk 0:02:56]}  Qe7 {[%clk 0:02:36]} 10. Nc3 {[%clk 0:02:52]}  Be6 {[%clk 0:02:34]} 11. Nd5 {[%clk 0:02:47]}  Bxd5 {[%clk 0:02:31]} 12. exd5 {[%clk 0:02:47]}  Na5 {[%clk 0:02:26]} 13. Bd2 {[%clk 0:02:18]}  Nxc4 {[%clk 0:02:25]} 14. Qxc4 {[%clk 0:02:18]}  Rad8 {[%clk 0:02:14]} 15. Bb4 {[%clk 0:02:18]}  Qd7 {[%clk 0:02:01]} 16. Bxf8 {[%clk 0:02:15]}  Bxf8 {[%clk 0:02:02]} 17. Nxe5 {[%clk 0:02:15]}  Qd6 {[%clk 0:02:02]} 18. Qf4 {[%clk 0:01:57]}  Bg7 {[%clk 0:01:48]} 19. Nd3 {[%clk 0:01:51]}  Qxd5 {[%clk 0:01:44]} 20. Re1 {[%clk 0:01:37]}  c6 {[%clk 0:01:37]} 21. Rad1 {[%clk 0:01:25]}  Qxa2 {[%clk 0:01:34]} 22. Qc7 {[%clk 0:01:20]}  Rd7 {[%clk 0:01:30]} 23. Qc8+ {[%clk 0:01:17]}  Bf8 {[%clk 0:01:30]} 24. Re8 {[%clk 0:00:34]}  Nxe8 {[%clk 0:01:27]} 25. Qxd7 {[%clk 0:00:35]}  Nd6 {[%clk 0:01:14]} 26. Re1 {[%clk 0:00:32]}  Kg7 {[%clk 0:01:05]} 27. Qg4 {[%clk 0:00:22]}  Nf5 {[%clk 0:00:57]} 28. Qe4 {[%clk 0:00:16]}  Kg8 {[%clk 0:00:54]} 29. g4 {[%clk 0:00:16]}  Nh4 {[%clk 0:00:51]} 30. Kh1 {[%clk 0:00:03]}  Bd6 {[%clk 0:00:47]} 31. Qe8+ {[%clk 0:00:03]}  Kg7 {[%clk 0:00:44]} 32. Qe4 {[%clk 0:00:03]}  Kg8 {[%clk 0:00:39]} 33. Rd1 {[%clk 0:00:04]}  Bf8 {[%clk 0:00:34]} 34. Ne1 {[%clk 0:00:01]}  Qxb2 {[%clk 0:00:29]} 35. Rd8 {[%clk 0:00:02]}  Qb5 {[%clk 0:00:20]} 36. Kg1 {[%clk 0:00:01]}  Qg5 {[%clk 0:00:08]} 37. Qe8 {[%clk 0:00:00]}  Qh6 {[%clk 0:00:08]} 0-1


[Site "https://www.chess.com"]

[Event "Titled Tuesday Blitz June 20 Late 2023"]
[White "Shuvalov, Evgenij"]
[Black "Stanisz, Patryk"]
[WhiteFideId "4187237"]
[BlackFideId "1123106"]
[WhiteElo "2080"]
[BlackElo "2069"]
[Result "1/2-1/2"]
[Round "7"]
[TimeControl "180+2"]
[Date "2023.06.20"]
[WhiteClock "0:00:09"]
[BlackClock "0:00:02"]
[Board "116"]

1. d4 {[%clk 0:03:00]}  d5 {[%clk 0:02:59]} 2. c4 {[%clk 0:03:00]}  c6 {[%clk 0:02:59]} 3. Nf3 {[%clk 0:02:59]}  Nf6 {[%clk 0:02:59]} 4. Nc3 {[%clk 0:02:59]}  e6 {[%clk 0:02:58]} 5. e3 {[%clk 0:02:57]}  Nbd7 {[%clk 0:02:57]} 6. Bd3 {[%clk 0:02:53]}  dxc4 {[%clk 0:02:58]} 7. Bxc4 {[%clk 0:02:53]}  b5 {[%clk 0:02:58]} 8. Bd3 {[%clk 0:02:53]}  b4 {[%clk 0:02:59]} 9. Ne4 {[%clk 0:02:52]}  c5 {[%clk 0:02:59]} 10. dxc5 {[%clk 0:02:48]}  Bxc5 {[%clk 0:02:59]} 11. Nxc5 {[%clk 0:02:46]}  Nxc5 {[%clk 0:03:00]} 12. Bb5+ {[%clk 0:02:42]}  Ke7 {[%clk 0:03:00]} 13. O-O {[%clk 0:02:38]}  Qb6 {[%clk 0:02:45]} 14. Nd4 {[%clk 0:02:24]}  Bb7 {[%clk 0:02:40]} 15. Be2 {[%clk 0:02:18]}  Rhd8 {[%clk 0:02:35]} 16. Bf3 {[%clk 0:02:14]}  Kf8 {[%clk 0:02:28]} 17. Bxb7 {[%clk 0:02:09]}  Qxb7 {[%clk 0:02:29]} 18. Qf3 {[%clk 0:02:03]}  Nce4 {[%clk 0:02:17]} 19. Qh3 {[%clk 0:01:57]}  Rd5 {[%clk 0:02:08]} 20. f3 {[%clk 0:01:51]}  Rh5 {[%clk 0:02:04]} 21. Nxe6+ {[%clk 0:01:48]}  Kg8 {[%clk 0:01:50]} 22. Qxh5 {[%clk 0:01:26]}  Nxh5 {[%clk 0:01:50]} 23. Nd4 {[%clk 0:01:25]}  Nc5 {[%clk 0:01:39]} 24. e4 {[%clk 0:01:23]}  Rd8 {[%clk 0:01:29]} 25. Be3 {[%clk 0:01:22]}  Ne6 {[%clk 0:01:24]} 26. Nf5 {[%clk 0:01:20]}  Nhf4 {[%clk 0:01:17]} 27. Rf2 {[%clk 0:01:15]}  g6 {[%clk 0:01:06]} 28. Nh6+ {[%clk 0:01:15]}  Kg7 {[%clk 0:01:05]} 29. Ng4 {[%clk 0:01:13]}  f6 {[%clk 0:00:59]} 30. Rc2 {[%clk 0:01:08]}  Rc8 {[%clk 0:00:53]} 31. Rac1 {[%clk 0:01:04]}  Rxc2 {[%clk 0:00:51]} 32. Rxc2 {[%clk 0:01:05]}  Qd7 {[%clk 0:00:50]} 33. Nf2 {[%clk 0:01:02]}  g5 {[%clk 0:00:38]} 34. g3 {[%clk 0:01:01]}  Ng6 {[%clk 0:00:34]} 35. Kg2 {[%clk 0:00:59]}  h5 {[%clk 0:00:33]} 36. Rd2 {[%clk 0:00:56]}  Qa4 {[%clk 0:00:31]} 37. b3 {[%clk 0:00:55]}  Qa6 {[%clk 0:00:30]} 38. Nd3 {[%clk 0:00:52]}  Qb5 {[%clk 0:00:26]} 39. Bxa7 {[%clk 0:00:48]}  h4 {[%clk 0:00:24]} 40. Be3 {[%clk 0:00:47]}  hxg3 {[%clk 0:00:24]} 41. hxg3 {[%clk 0:00:48]}  Ne5 {[%clk 0:00:23]} 42. Nxe5 {[%clk 0:00:46]}  fxe5 {[%clk 0:00:24]} 43. Rd5 {[%clk 0:00:43]}  Qe2+ {[%clk 0:00:20]} 44. Bf2 {[%clk 0:00:42]}  Nd4 {[%clk 0:00:19]} 45. Rxe5 {[%clk 0:00:38]}  Qxf3+ {[%clk 0:00:17]} 46. Kg1 {[%clk 0:00:36]}  Ne2+ {[%clk 0:00:17]} 47. Kf1 {[%clk 0:00:36]}  Nxg3+ {[%clk 0:00:17]} 48. Kg1 {[%clk 0:00:36]}  Nxe4 {[%clk 0:00:16]} 49. Bd4 {[%clk 0:00:28]}  Qg3+ {[%clk 0:00:14]} 50. Kf1 {[%clk 0:00:25]}  Nd2+ {[%clk 0:00:12]} 51. Ke2 {[%clk 0:00:22]}  Qg2+ {[%clk 0:00:11]} 52. Kd3 {[%clk 0:00:21]}  Kg6 {[%clk 0:00:11]} 53. Re2 {[%clk 0:00:20]}  Qd5 {[%clk 0:00:05]} 54. Rxd2 {[%clk 0:00:19]}  g4 {[%clk 0:00:06]} 55. Re2 {[%clk 0:00:15]}  g3 {[%clk 0:00:05]} 56. Re5 {[%clk 0:00:13]}  Qf3+ {[%clk 0:00:03]} 57. Re3 {[%clk 0:00:13]}  Qf1+ {[%clk 0:00:02]} 58. Ke4 {[%clk 0:00:13]}  g2 {[%clk 0:00:02]} 59. Rg3+ {[%clk 0:00:13]}  Kh5 {[%clk 0:00:03]} 60. Be3 {[%clk 0:00:12]}  Qe1 {[%clk 0:00:01]} 61. Rg5+ {[%clk 0:00:12]}  Kh4 {[%clk 0:00:01]} 62. Rg7 {[%clk 0:00:11]}  Qb1+ {[%clk 0:00:02]} 63. Kf4 {[%clk 0:00:11]}  Qf1+ {[%clk 0:00:02]} 64. Ke4 {[%clk 0:00:11]}  Kh5 {[%clk 0:00:02]} 65. Rg5+ {[%clk 0:00:10]}  Kh4 {[%clk 0:00:02]} 66. Rg7 {[%clk 0:00:10]}  Kh3 {[%clk 0:00:02]} 67. Rh7+ {[%clk 0:00:09]}  Kg4 {[%clk 0:00:03]} 68. Rg7+ {[%clk 0:00:10]}  Kh4 {[%clk 0:00:03]} 69. Rh7+ {[%clk 0:00:09]}  Kg3 {[%clk 0:00:04]} 70. Rg7+ {[%clk 0:00:10]}  Kh4 {[%clk 0:00:04]} 71. Rh7+ {[%clk 0:00:10]}  Kg4 {[%clk 0:00:04]} 72. Rg7+ {[%clk 0:00:10]}  Kh5 {[%clk 0:00:04]} 73. Rg5+ {[%clk 0:00:10]}  Kh4 {[%clk 0:00:02]} 74. Rg7 {[%clk 0:00:09]} 1/2-1/2


[Site "https://www.chess.com"]

[Event "Titled Tuesday Blitz June 20 Late 2023"]
[White "Kielinkei"]
[Black "Romero Ruscalleda, Josep"]
[BlackFideId "2231859"]
[WhiteElo "2443"]
[BlackElo "2183"]
[Result "1-0"]
[Round "7"]
[TimeControl "180+2"]
[Date "2023.06.20"]
[WhiteClock "0:00:36"]
[BlackClock "0:00:13"]
[Board "119"]

1. e4 {[%clk 0:03:00]}  g6 {[%clk 0:02:57]} 2. d4 {[%clk 0:03:00]}  Bg7 {[%clk 0:02:57]} 3. Nc3 {[%clk 0:03:01]}  d6 {[%clk 0:02:57]} 4. Be3 {[%clk 0:03:01]}  a6 {[%clk 0:02:57]} 5. h4 {[%clk 0:03:02]}  h5 {[%clk 0:02:56]} 6. Nh3 {[%clk 0:03:00]}  Bxh3 {[%clk 0:02:55]} 7. Rxh3 {[%clk 0:03:00]}  Nf6 {[%clk 0:02:54]} 8. f3 {[%clk 0:02:56]}  b5 {[%clk 0:02:51]} 9. Qd2 {[%clk 0:02:53]}  Nbd7 {[%clk 0:02:51]} 10. O-O-O {[%clk 0:02:51]}  Nb6 {[%clk 0:02:51]} 11. e5 {[%clk 0:02:36]}  Nfd7 {[%clk 0:02:25]} 12. f4 {[%clk 0:02:30]}  e6 {[%clk 0:02:19]} 13. Ne4 {[%clk 0:02:25]}  Qe7 {[%clk 0:02:07]} 14. Qd3 {[%clk 0:01:53]}  Nd5 {[%clk 0:01:53]} 15. Bd2 {[%clk 0:01:50]}  N7b6 {[%clk 0:01:52]} 16. Kb1 {[%clk 0:01:44]}  Nc4 {[%clk 0:01:22]} 17. Bc1 {[%clk 0:01:43]}  O-O {[%clk 0:01:14]} 18. Be2 {[%clk 0:01:39]}  Rab8 {[%clk 0:01:05]} 19. g4 {[%clk 0:01:38]}  Nb4 {[%clk 0:01:01]} 20. Qb3 {[%clk 0:01:35]}  d5 {[%clk 0:01:01]} 21. Nc5 {[%clk 0:01:30]}  a5 {[%clk 0:00:59]} 22. gxh5 {[%clk 0:01:25]}  Nc6 {[%clk 0:00:56]} 23. hxg6 {[%clk 0:01:22]}  fxg6 {[%clk 0:00:56]} 24. Qg3 {[%clk 0:01:21]}  Nxd4 {[%clk 0:00:49]} 25. Rxd4 {[%clk 0:01:11]}  Qxc5 {[%clk 0:00:48]} 26. Rd1 {[%clk 0:01:12]}  a4 {[%clk 0:00:30]} 27. Qxg6 {[%clk 0:01:10]}  Rxf4 {[%clk 0:00:29]} 28. Bxf4 {[%clk 0:00:53]}  b4 {[%clk 0:00:29]} 29. Rg3 {[%clk 0:00:50]}  Na3+ {[%clk 0:00:28]} 30. bxa3 {[%clk 0:00:39]}  bxa3+ {[%clk 0:00:28]} 31. Ka1 {[%clk 0:00:40]}  Qe7 {[%clk 0:00:16]} 32. Qxg7+ {[%clk 0:00:39]}  Qxg7 {[%clk 0:00:16]} 33. Rxg7+ {[%clk 0:00:39]}  Kxg7 {[%clk 0:00:16]} 34. Rg1+ {[%clk 0:00:39]}  Kh7 {[%clk 0:00:16]} 35. Bd3+ {[%clk 0:00:36]}  Kh8 {[%clk 0:00:13]} 36. Bg5 {[%clk 0:00:36]} 1-0


[Site "https://www.chess.com"]

[Event "Titled Tuesday Blitz June 20 Late 2023"]
[White "Doknjas, Neil"]
[Black "Martinez, Ayelen"]
[WhiteFideId "2617587"]
[BlackFideId "118702"]
[WhiteElo "2152"]
[BlackElo "2074"]
[Result "1-0"]
[Round "7"]
[TimeControl "180+2"]
[Date "2023.06.20"]
[WhiteClock "0:00:43"]
[BlackClock "0:00:06"]
[Board "121"]

1. e4 {[%clk 0:03:00]}  c5 {[%clk 0:02:59]} 2. Nf3 {[%clk 0:02:59]}  d6 {[%clk 0:02:59]} 3. d4 {[%clk 0:02:57]}  cxd4 {[%clk 0:03:00]} 4. Nxd4 {[%clk 0:02:58]}  Nf6 {[%clk 0:03:00]} 5. Nc3 {[%clk 0:02:59]}  a6 {[%clk 0:03:00]} 6. f3 {[%clk 0:02:59]}  e5 {[%clk 0:03:00]} 7. Nb3 {[%clk 0:02:59]}  Be7 {[%clk 0:03:00]} 8. Be3 {[%clk 0:02:59]}  O-O {[%clk 0:03:00]} 9. Qd2 {[%clk 0:02:58]}  Be6 {[%clk 0:02:58]} 10. O-O-O {[%clk 0:02:57]}  Qc7 {[%clk 0:02:58]} 11. g4 {[%clk 0:02:56]}  Rc8 {[%clk 0:02:57]} 12. Kb1 {[%clk 0:02:55]}  d5 {[%clk 0:02:57]} 13. exd5 {[%clk 0:02:35]}  Nxd5 {[%clk 0:02:53]} 14. Nxd5 {[%clk 0:02:31]}  Bxd5 {[%clk 0:02:52]} 15. Be2 {[%clk 0:02:06]}  Bc6 {[%clk 0:02:08]} 16. Qa5 {[%clk 0:02:01]}  Nd7 {[%clk 0:01:55]} 17. Qxc7 {[%clk 0:01:53]}  Rxc7 {[%clk 0:01:55]} 18. Na5 {[%clk 0:01:52]}  Bb5 {[%clk 0:01:33]} 19. Bxb5 {[%clk 0:01:24]}  axb5 {[%clk 0:01:33]} 20. Nb3 {[%clk 0:01:24]}  g6 {[%clk 0:01:06]} 21. Rd5 {[%clk 0:01:23]}  Bf6 {[%clk 0:00:59]} 22. Rhd1 {[%clk 0:01:19]}  Nf8 {[%clk 0:00:57]} 23. Rxb5 {[%clk 0:01:15]}  Ne6 {[%clk 0:00:54]} 24. Bb6 {[%clk 0:01:13]}  Rc6 {[%clk 0:00:42]} 25. Na5 {[%clk 0:01:09]}  Rxb6 {[%clk 0:00:42]} 26. Rxb6 {[%clk 0:01:07]}  Rxa5 {[%clk 0:00:43]} 27. Rxb7 {[%clk 0:01:07]}  Nc5 {[%clk 0:00:36]} 28. Rb8+ {[%clk 0:01:05]}  Kg7 {[%clk 0:00:35]} 29. b4 {[%clk 0:01:05]}  Na6 {[%clk 0:00:32]} 30. bxa5 {[%clk 0:00:56]}  Nxb8 {[%clk 0:00:31]} 31. Rd6 {[%clk 0:00:57]}  e4 {[%clk 0:00:23]} 32. fxe4 {[%clk 0:00:53]}  Bc3 {[%clk 0:00:20]} 33. a6 {[%clk 0:00:50]}  Nxa6 {[%clk 0:00:11]} 34. Rxa6 {[%clk 0:00:51]}  Be5 {[%clk 0:00:10]} 35. h3 {[%clk 0:00:48]}  f6 {[%clk 0:00:08]} 36. a4 {[%clk 0:00:45]}  Kh6 {[%clk 0:00:07]} 37. Ra7 {[%clk 0:00:45]}  g5 {[%clk 0:00:07]} 38. a5 {[%clk 0:00:42]}  Kg6 {[%clk 0:00:08]} 39. a6 {[%clk 0:00:43]}  h5 {[%clk 0:00:09]} 40. Rb7 {[%clk 0:00:42]}  Bd4 {[%clk 0:00:08]} 41. a7 {[%clk 0:00:42]}  Bxa7 {[%clk 0:00:06]} 42. Rxa7 {[%clk 0:00:43]} 1-0


[Site "https://www.chess.com"]

[Event "Titled Tuesday Blitz June 20 Late 2023"]
[White "Ai, Evan"]
[Black "Schut, Han"]
[WhiteFideId "2094770"]
[BlackFideId "1005561"]
[WhiteElo "1963"]
[BlackElo "2024"]
[Result "1-0"]
[Round "7"]
[TimeControl "180+2"]
[Date "2023.06.20"]
[WhiteClock "0:00:23"]
[BlackClock "0:00:08"]
[Board "122"]

1. e4 {[%clk 0:02:51]}  c5 {[%clk 0:02:59]} 2. Nf3 {[%clk 0:02:51]}  d6 {[%clk 0:02:59]} 3. d4 {[%clk 0:02:50]}  cxd4 {[%clk 0:03:00]} 4. Nxd4 {[%clk 0:02:51]}  Nf6 {[%clk 0:03:01]} 5. Nc3 {[%clk 0:02:51]}  a6 {[%clk 0:03:01]} 6. h3 {[%clk 0:02:51]}  e6 {[%clk 0:03:01]} 7. g4 {[%clk 0:02:50]}  d5 {[%clk 0:03:02]} 8. e5 {[%clk 0:02:50]}  Nfd7 {[%clk 0:03:01]} 9. f4 {[%clk 0:02:50]}  Qh4+ {[%clk 0:03:01]} 10. Ke2 {[%clk 0:02:48]}  Nc6 {[%clk 0:02:59]} 11. Nf3 {[%clk 0:02:48]}  Qd8 {[%clk 0:02:57]} 12. Be3 {[%clk 0:02:47]}  Be7 {[%clk 0:02:52]} 13. Bg2 {[%clk 0:02:47]}  g5 {[%clk 0:02:52]} 14. fxg5 {[%clk 0:02:24]}  Ndxe5 {[%clk 0:02:43]} 15. Nxe5 {[%clk 0:02:09]}  Nxe5 {[%clk 0:02:43]} 16. Qd4 {[%clk 0:02:10]}  Qc7 {[%clk 0:02:37]} 17. Bf4 {[%clk 0:02:07]}  Qc4+ {[%clk 0:02:36]} 18. Qxc4 {[%clk 0:02:05]}  Nxc4 {[%clk 0:02:36]} 19. b3 {[%clk 0:02:05]}  Bd6 {[%clk 0:02:20]} 20. bxc4 {[%clk 0:01:39]}  Bxf4 {[%clk 0:02:20]} 21. cxd5 {[%clk 0:01:39]}  Be5 {[%clk 0:02:10]} 22. Kd3 {[%clk 0:01:38]}  O-O {[%clk 0:01:47]} 23. Rae1 {[%clk 0:01:34]}  Bxc3 {[%clk 0:01:28]} 24. Kxc3 {[%clk 0:01:35]}  Bd7 {[%clk 0:01:28]} 25. dxe6 {[%clk 0:01:31]}  Rfc8+ {[%clk 0:01:17]} 26. Kb2 {[%clk 0:01:29]}  Bxe6 {[%clk 0:01:17]} 27. Re3 {[%clk 0:01:26]}  Rab8 {[%clk 0:01:13]} 28. Rd1 {[%clk 0:01:25]}  Rc5 {[%clk 0:01:11]} 29. h4 {[%clk 0:01:20]}  Rb5+ {[%clk 0:01:08]} 30. Kc1 {[%clk 0:01:07]}  Bxa2 {[%clk 0:01:06]} 31. Rd4 {[%clk 0:00:57]}  Rc8 {[%clk 0:00:53]} 32. Be4 {[%clk 0:00:40]}  Rb1+ {[%clk 0:00:43]} 33. Kd2 {[%clk 0:00:39]}  Be6 {[%clk 0:00:37]} 34. Bf5 {[%clk 0:00:28]}  Rb2 {[%clk 0:00:33]} 35. Rxe6 {[%clk 0:00:25]}  Rbxc2+ {[%clk 0:00:14]} 36. Bxc2 {[%clk 0:00:25]}  fxe6 {[%clk 0:00:15]} 37. Rd7 {[%clk 0:00:22]}  b5 {[%clk 0:00:15]} 38. Bxh7+ {[%clk 0:00:22]}  Kf8 {[%clk 0:00:08]} 39. g6 {[%clk 0:00:23]} 1-0


[Site "https://www.chess.com"]